bitfinex/quotes_ETHUSD_20260213
["timestamp","ask_amount","ask_price","bid_price","bid_amount"]
[1770951613735,0.002,1951.4,1950.7,1.28159122]
[1770951615062,0.91285131,1951.4,1950.6,3.26664119]
[1770951615469,0.002,1951.4,1950.6,4.25504922]
[1770951616658,0.91285131,1951.4,1950.6,3.26664119]
[1770951617540,0.002,1951.4,1950.6,4.25504922]
[1770951617738,0.002,1951.4,1950.7,0.98840803]
[1770951617943,0.002,1951.4,1950.8,0.98840803]
[1770951618158,0.002,1951.4,1950.9,1.28145983]
[1770951619643,0.002,1951.4,1951.0,0.98840803]
[1770951620263,0.002,1951.4,1951.1,1.28132848]
[1770951620446,0.002,1951.4,1951.1,3.26432848]
[1770951621472,0.002,1951.4,1951.1,1.983]
[1770951623883,0.91285131,1951.4,1950.7,2.20558456]
[1770951624567,0.002,1951.4,1950.7,3.19399259]
[1770951624878,0.91285131,1951.4,1950.7,2.20558456]
[1770951627086,0.002,1951.4,1950.7,2.20558456]
[1770951627455,0.002,1951.4,1950.8,0.98840803]
[1770951628281,0.002,1951.4,1950.7,2.20558456]
[1770951630084,0.002,1951.4,1950.8,0.98840803]
[1770951630776,0.002,1951.4,1950.9,1.28145983]
[1770951631191,0.002,1951.4,1951.0,0.95640747]
[1770951631480,0.002,1951.7,1951.2,0.95640747]
[1770951632689,0.002,1951.7,1951.3,1.28119715]
[1770951634760,0.002,1951.7,1951.2,5.1247886]
[1770951638459,0.00063098,1951.7,1951.2,5.1247886]
[1770951638764,0.002,1951.6,1951.2,5.1247886]
[1770951639272,0.00063098,1951.7,1951.2,5.1247886]
[1770951639470,0.00063098,1951.7,1951.2,6.1016275]
[1770951639667,0.002,1952.0,1951.3,0.9768389]
[1770951641680,0.002,1952.0,1951.5,0.9768389]
[1770951641881,0.002,1952.0,1951.6,1.987]
[1770951642082,0.002,1952.0,1951.6,2.9638389]
[1770951642475,0.002,1952.0,1951.7,0.9768389]
[1770951643686,0.002,1952.5,1951.9,0.9768389]
[1770951643890,0.002,1952.5,1952.0,2.9638389]
[1770951645903,0.002,1952.5,1952.2,0.9768389]
[1770951647771,0.002,1952.5,1952.3,1.2805409]
[1770951647973,0.002,1952.5,1952.1,1.28067209]
[1770951649705,0.002,1952.5,1952.0,3.26768839]
[1770951651289,0.002,1952.4,1952.0,3.26768839]
[1770951652608,0.002,1952.4,1952.0,4.24452729]
[1770951652905,0.002,1952.6,1952.2,2.25744539]
[1770951653208,0.002,1952.9,1952.3,0.9768389]
[1770951653413,0.002,1952.9,1952.4,1.989]
[1770951655603,0.002,1952.9,1952.5,1.28040973]
[1770951656401,0.002,1952.9,1952.4,3.26942733]
[1770951656602,0.002,1952.9,1952.4,3.26947496]
[1770951656603,0.98284119,1952.9,1952.4,3.26947496]
[1770951657180,0.98284119,1952.9,1952.4,1.989]
[1770951658511,0.98284119,1952.9,1951.6,2.2040002]
[1770951658512,0.98084119,1952.8,1951.6,2.2040002]
[1770951658679,0.98084119,1952.8,1951.9,1.988]
[1770951659580,0.98084119,1952.8,1951.9,2.9648389]
[1770951659783,0.98084119,1952.8,1952.0,1.2807377]
[1770951660597,0.002,1952.9,1952.0,2.27549337]
[1770951660896,0.96041583,1952.8,1951.9,1.988]
[1770951661095,0.96041583,1952.8,1951.9,3.26880315]
[1770951662111,0.96041583,1952.6,1951.9,3.26880315]
[1770951663385,0.96041583,1952.6,1952.0,0.001]
[1770951664214,2.24078167,1952.6,1952.0,0.001]
[1770951665089,0.96041583,1952.5,1952.0,0.001]
[1770951666305,2.24084306,1952.5,1952.0,0.001]
[1770951667615,0.96041583,1952.5,1952.0,0.001]
[1770951668705,0.96241583,1952.7,1952.0,0.001]
[1770951668905,1.10418185,1952.6,1952.0,0.99575567]
[1770951669123,1.10478223,1952.5,1952.0,0.001]
[1770951669301,0.96041583,1952.6,1952.0,0.001]
[1770951669503,1.10482864,1952.5,1952.0,0.001]
[1770951669702,0.002,1952.7,1952.0,0.001]
[1770951669994,1.10482833,1952.6,1952.0,0.001]
[1770951670215,1.10511399,1952.5,1952.0,0.99575567]
[1770951670423,0.002,1952.7,1952.0,0.99575567]
[1770951670607,1.10514153,1952.6,1952.0,0.99575567]
[1770951670810,0.002,1952.7,1952.0,0.99575567]
[1770951672840,0.002,1952.7,1952.2,0.99475567]
[1770951673532,0.002,1952.7,1952.4,0.99475567]
[1770951673819,0.002,1952.7,1952.5,2.97575567]
[1770951675126,0.002,1952.7,1952.6,1.28034415]
[1770951677331,0.002,1952.8,1952.6,1.28034415]
[1770951678545,0.002,1952.8,1952.5,3.26135904]
[1770951678722,0.002,1952.8,1952.5,3.26140339]
[1770951678907,0.002,1952.9,1952.5,3.26140339]
[1770951680231,0.96241583,1952.9,1952.3,0.923]
[1770951681222,0.002,1952.9,1952.3,3.19827335]
[1770951681598,0.002,1952.9,1952.4,0.99475567]
[1770951681799,0.002,1952.9,1952.5,2.2751654]
[1770951682046,0.002,1952.9,1952.6,1.984]
[1770951682212,0.96241583,1952.9,1952.6,1.984]
[1770951682409,0.96241583,1952.9,1952.3,2.907]
[1770951682835,0.002,1952.9,1952.3,4.18753993]
[1770951683033,0.002,1952.9,1952.3,5.1822956]
[1770951684844,0.002,1952.9,1952.4,0.99475567]
[1770951685428,0.002,1952.9,1952.3,5.1822956]
[1770951685846,0.002,1952.9,1952.4,1.985]
[1770951686305,0.002,1952.9,1952.5,0.99475567]
[1770951688116,0.002,1952.9,1952.6,2.27509982]
[1770951688319,0.002,1952.8,1952.6,2.27509982]
[1770951688521,0.002,1952.8,1952.6,1.28034415]
[1770951688730,0.002,1952.8,1952.6,3.26534415]
[1770951689242,0.002,1952.8,1952.6,1.985]
[1770951689642,0.002,1952.9,1952.6,1.985]
[1770951690219,0.002,1952.9,1952.7,1.28027858]
[1770951690423,0.002,1952.9,1952.6,7.10611435]
[1770951690424,0.002,1952.9,1952.6,3.26529167]
[1770951694646,0.002,1952.9,1952.6,1.985]
[1770951694850,0.94572744,1952.9,1952.6,1.985]
[1770951695167,0.002,1952.9,1952.6,1.985]
[1770951696230,0.002,1952.9,1952.6,3.26534013]
[1770951697627,0.002,1952.9,1952.6,1.985]
[1770951697851,0.002,1952.9,1952.6,3.26533869]
[1770951698354,0.002,1952.9,1952.6,1.985]
[1770951699549,0.002,1952.9,1952.6,1.991]
[1770951700193,0.94372744,1952.7,1952.3,0.001]
[1770951700385,0.94572744,1952.9,1952.3,1.28153719]
[1770951700685,1.1066255,1952.8,1952.3,0.001]
[1770951700864,1.1066255,1952.7,1952.3,0.001]
[1770951701067,0.94372744,1952.8,1952.3,0.001]
[1770951701368,2.05036267,1952.7,1952.3,0.001]
[1770951701572,1.10663523,1952.6,1952.5,0.001]
[1770951701765,0.00080128,1952.6,1952.5,0.001]
[1770951702086,0.00080128,1952.6,1952.3,0.001]
[1770951702587,0.94452872,1952.6,1952.2,0.71030145]
[1770951702782,0.94372744,1952.4,1952.0,0.001]
[1770951702978,1.37618763,1952.6,1952.0,0.001]
[1770951702979,2.31991507,1952.6,1952.0,0.001]
[1770951703283,0.94372744,1952.5,1952.0,0.001]
[1770951705197,0.94372744,1952.5,1952.0,0.003]
[1770951705489,2.58372744,1952.7,1952.0,1.2837377]
[1770951705687,0.94372744,1952.6,1952.0,1.2837377]
[1770951706873,0.94372744,1952.6,1952.0,0.003]
[1770951707369,0.94372744,1952.6,1952.1,0.002]
[1770951708288,0.94372744,1952.5,1952.0,0.001]
[1770951708485,0.94372744,1952.5,1952.0,0.003]
[1770951708867,0.94372744,1952.5,1952.0,0.001]
[1770951709797,0.94372744,1952.4,1952.0,0.001]
[1770951710003,0.94372744,1952.3,1952.0,0.003]
[1770951710508,1.28045866,1952.5,1952.0,0.003]
[1770951710668,2.2241861,1952.5,1952.0,0.003]
[1770951712401,0.94372744,1952.4,1952.0,0.003]
[1770951713793,2.0463972,1952.3,1952.1,0.001]
[1770951713974,0.94372744,1952.3,1952.1,0.001]
[1770951714797,0.94372744,1952.1,1951.9,0.001]
[1770951716822,1.28066212,1952.2,1951.9,0.003]
[1770951717107,3.86631801,1952.3,1951.9,0.003]
[1770951717409,1.10187265,1952.2,1951.9,0.003]
[1770951717708,3.86631801,1952.3,1951.9,0.003]
[1770951718005,1.10178526,1952.2,1951.9,0.003]
[1770951718181,3.86631801,1952.3,1951.9,0.003]
[1770951718381,1.10176706,1952.2,1951.9,0.003]
[1770951718594,3.86631801,1952.3,1951.9,0.003]
[1770951718906,1.10176683,1952.2,1951.9,0.003]
[1770951719080,2.22434185,1952.2,1951.9,0.003]
[1770951720772,2.92255094,1952.3,1951.9,0.003]
[1770951721077,1.647,1952.4,1951.9,0.003]
[1770951721286,2.07429099,1952.3,1951.9,0.003]
[1770951721486,1.10185507,1952.2,1951.9,0.003]
[1770951721784,1.647,1952.4,1951.9,0.003]
[1770951721990,1.10182107,1952.3,1952.0,0.002]
[1770951722308,1.647,1952.4,1952.0,0.002]
[1770951722607,1.1019129,1952.3,1952.0,0.002]
[1770951722809,2.35077372,1952.8,1952.1,1.28067209]
[1770951723113,3.72223742,1952.7,1952.1,0.002]
[1770951723296,1.10165133,1952.6,1952.1,0.002]
[1770951726222,0.002,1952.2,1952.1,0.002]
[1770951726520,0.002,1952.2,1952.0,0.001]
[1770951726722,0.002,1952.3,1952.0,0.001]
[1770951729525,0.002,1952.8,1952.2,0.96178876]
[1770951729899,1.10475267,1952.7,1952.1,1.969]
[1770951730198,0.002,1952.8,1952.1,1.969]
[1770951730406,1.10490489,1952.7,1952.1,1.969]
[1770951730627,0.002,1952.8,1952.1,1.969]
[1770951730806,1.10487271,1952.7,1952.2,0.96178876]
[1770951731123,0.002,1952.8,1952.4,0.96178876]
[1770951731323,0.002,1952.8,1952.5,0.96178876]
[1770951731621,0.002,1953.0,1952.5,0.96178876]
[1770951732210,0.002,1953.0,1952.4,6.81617488]
[1770951732410,0.002,1953.0,1952.4,7.77796364]
[1770951733016,0.002,1953.0,1952.4,0.96178876]
[1770951733332,0.002,1953.0,1952.5,1.28040973]
[1770951735910,0.002,1953.0,1952.5,2.24219849]
[1770951736139,0.002,1953.0,1952.6,0.96178876]
[1770951737024,0.002,1953.0,1952.5,1.28040973]
[1770951738454,0.002,1952.9,1952.5,1.28040973]
[1770951740156,0.002,1952.9,1952.4,5.12182995]
[1770951740867,0.002,1952.9,1952.4,6.08361871]
[1770951741337,0.002,1952.9,1952.5,0.96178876]
[1770951742364,0.97458609,1952.9,1952.2,1.28155667]
[1770951742568,0.002,1952.9,1952.3,0.96178876]
[1770951744236,0.002,1952.9,1952.4,1.28047531]
[1770951744656,0.002,1952.9,1952.4,2.24226407]
[1770951745454,0.002,1953.3,1952.6,0.96178876]
[1770951745662,2.81730497,1953.5,1952.8,0.96178876]
[1770951745663,0.002,1953.5,1952.8,0.96178876]
[1770951745868,0.002,1953.5,1953.0,0.96178876]
[1770951746372,0.002,1953.5,1953.1,1.28001638]
[1770951746576,0.002,1953.5,1953.1,2.24180514]
[1770951746765,0.002,1953.7,1953.2,0.96178876]
[1770951747278,0.003,1954.1,1953.4,0.96178876]
[1770951747441,0.003,1954.1,1953.5,2.93178876]
[1770951747848,0.97558609,1954.1,1953.5,1.97]
[1770951748342,2.25494936,1954.1,1953.5,1.97]
[1770951748548,0.003,1954.1,1953.6,0.96178876]
[1770951748774,0.003,1954.1,1953.5,3.24974858]
[1770951748981,0.97558609,1954.1,1953.5,3.24974858]
[1770951749177,0.97558609,1954.1,1953.5,1.97]
[1770951749550,0.97558609,1954.1,1953.5,3.24974924]
[1770951750179,0.002,1954.0,1953.5,3.24974924]
[1770951751685,0.002,1954.0,1953.5,4.24086433]
[1770951751990,0.002,1954.0,1953.5,3.24974719]
[1770951752884,0.92136241,1954.0,1953.4,1.968]
[1770951753860,0.002,1954.0,1953.4,1.968]
[1770951754887,0.002,1954.0,1953.5,1.27975428]
[1770951756261,0.002,1954.0,1953.5,2.18260231]
[1770951756512,0.002,1954.0,1953.6,0.90284803]
[1770951756668,0.006,1954.3,1953.7,0.90284803]
[1770951756863,0.006,1954.3,1953.8,3.24755778]
[1770951757096,0.006,1954.3,1953.8,4.15040581]
[1770951757562,0.006,1954.3,1953.8,3.24755778]
[1770951757759,0.9905625,1954.3,1953.3,1.27988532]
[1770951757964,0.9905625,1954.3,1953.4,1.969]
[1770951758569,0.9845625,1954.1,1953.4,1.969]
[1770951758969,1.27942681,1954.0,1953.4,1.969]
[1770951759895,0.9845625,1953.9,1953.4,1.969]
[1770951760081,0.9845625,1953.9,1953.0,1.967]
[1770951760292,0.9845625,1953.7,1953.0,1.967]
[1770951761310,0.9845625,1953.9,1953.1,1.28001638]
[1770951761905,1.27942681,1954.0,1953.1,2.18286441]
[1770951762105,1.10009173,1953.9,1953.2,0.90284803]
[1770951762301,1.629,1954.3,1953.2,0.90284803]
[1770951762493,1.09995025,1954.2,1953.2,0.90284803]
[1770951762814,2.08449778,1954.1,1953.5,0.001]
[1770951763019,0.9845625,1954.1,1953.5,0.001]
[1770951763188,0.002,1954.0,1953.5,0.001]
[1770951763585,0.9865625,1954.0,1953.5,0.001]
[1770951764219,0.9845625,1953.8,1953.5,0.001]
[1770951765717,1.27962327,1953.7,1953.5,0.001]
[1770951767030,2.26418577,1953.7,1953.5,0.001]
[1770951767921,0.9845625,1953.5,1952.7,1.28027858]
[1770951768091,1.1011085,1953.4,1952.7,1.28027858]
[1770951770321,1.27988532,1953.3,1952.6,5.12220229]
[1770951771624,2.26443277,1953.4,1952.6,5.12220229]
[1770951771930,1.10180527,1953.3,1952.6,5.12220229]
[1770951772139,2.26443277,1953.4,1952.6,5.12220229]
[1770951772327,2.38179629,1953.3,1952.6,5.12220229]
[1770951772635,1.27989363,1953.3,1952.6,5.12220229]
[1770951772830,0.9845625,1953.2,1952.6,0.001]
[1770951774730,2.26456101,1953.2,1952.6,0.001]
[1770951775453,2.26456101,1953.2,1952.7,0.001]
[1770951778122,2.08664637,1953.1,1952.7,0.001]
[1770951778318,0.9845625,1953.1,1952.7,0.001]
[1770951779432,1.27999851,1953.2,1952.7,0.001]
[1770951780151,1.10182856,1953.1,1952.7,0.001]
[1770951780450,1.27999851,1953.2,1952.7,0.001]
[1770951780632,1.10182843,1953.1,1952.7,0.001]
[1770951780832,0.002,1953.3,1952.7,0.001]
[1770951781023,0.002,1953.3,1952.7,0.95788141]
[1770951781755,0.9713488,1953.3,1952.7,0.001]
[1770951782553,2.07139081,1953.2,1952.7,0.001]
[1770951782848,0.9693488,1953.2,1952.7,0.001]
[1770951783055,0.9693488,1953.0,1952.7,0.001]
[1770951784534,2.24945139,1953.0,1952.7,0.001]
[1770951785325,0.9693488,1952.9,1952.7,0.001]
[1770951786758,2.24954748,1952.9,1952.7,0.001]
[1770951787053,2.24950042,1952.9,1952.7,0.001]
[1770951787667,1.28015162,1952.9,1952.7,0.001]
[1770951788171,2.07240186,1952.8,1952.7,0.001]
[1770951788376,2.07240186,1952.8,1952.5,0.001]
[1770951788668,0.9693488,1952.5,1952.0,0.001]
[1770951790064,0.9693488,1952.3,1952.0,0.001]
[1770951790377,0.9693488,1952.1,1951.6,0.001]
[1770951790897,1.2807377,1952.0,1951.6,0.001]
[1770951791043,0.9693488,1952.0,1951.6,0.001]
[1770951792146,2.24999509,1952.2,1951.6,0.001]
[1770951792347,2.65897286,1952.4,1951.6,0.95788141]
[1770951792668,2.73069556,1952.3,1951.6,0.95788141]
[1770951792841,1.10069556,1952.2,1951.7,1.28093456]
[1770951793047,1.63,1952.3,1951.7,1.28093456]
[1770951793367,1.10098092,1952.2,1951.8,0.95688141]
[1770951793566,1.63,1952.4,1951.8,0.95688141]
[1770951793784,3.87982944,1952.4,1951.7,1.28093456]
[1770951794074,0.9693488,1952.3,1951.6,1.28195182]
[1770951794240,0.9693488,1952.3,1951.6,1.28198417]
[1770951794439,0.9693488,1952.3,1951.6,1.28199643]
[1770951794667,2.91048064,1952.4,1951.6,0.001]
[1770951794668,0.9693488,1952.1,1951.6,0.001]
[1770951794867,1.2807377,1952.0,1951.6,0.001]
[1770951796068,3.8800865,1952.0,1951.6,0.001]
[1770951798942,3.8800865,1952.0,1951.7,0.001]
[1770951800156,0.9693488,1951.9,1951.7,0.001]
[1770951800696,2.9107377,1952.0,1951.7,0.001]
[1770951801186,3.8800865,1952.0,1951.7,0.001]
[1770951804498,0.9693488,1951.9,1951.7,0.001]
[1770951805490,2.25020631,1951.9,1951.7,0.001]
[1770951806998,0.9693488,1951.8,1951.7,0.001]
[1770951807498,2.25020631,1951.9,1951.7,0.001]
[1770951808399,1.28085751,1951.9,1951.7,0.001]
[1770951809597,2.92564206,1952.2,1951.7,0.001]
[1770951809904,2.38092739,1952.1,1951.7,0.001]
[1770951810108,1.10036229,1952.0,1951.7,0.001]
[1770951810268,2.25003248,1952.1,1951.7,0.001]
[1770951810465,1.10045435,1952.0,1951.7,0.001]
[1770951810772,0.96684978,1952.0,1951.7,0.001]
[1770951810968,1.646,1951.9,1951.7,0.001]
[1770951811506,0.002,1951.8,1951.7,0.001]
[1770951814389,2.38585463,1951.8,1951.7,0.001]
[1770951815801,1.10498569,1951.8,1951.7,0.001]
[1770951815972,2.38585463,1951.8,1951.7,0.001]
[1770951817872,1.10498569,1951.8,1951.7,0.001]
[1770951818084,2.38585463,1951.8,1951.7,0.001]
[1770951818285,3.7643025,1951.8,1951.6,0.001]
[1770951818486,1.10298569,1951.7,1951.6,0.001]
[1770951819682,6.37752622,1951.7,1951.3,0.001]
[1770951819986,1.37844787,1951.5,1951.3,0.001]
[1770951820186,1.10298569,1951.4,1951.1,0.001]
[1770951820392,1.10298569,1951.3,1951.1,0.001]
[1770951820603,1.10298569,1951.2,1951.1,0.001]
[1770951822284,2.3842485,1951.2,1951.1,0.001]
[1770951822485,1.10298569,1951.2,1951.1,0.001]
[1770951824413,2.3842485,1951.2,1951.1,0.001]
[1770951825321,1.10298569,1951.2,1951.1,0.001]
[1770951827503,1.37844787,1951.5,1951.2,0.93310529]
[1770951827703,0.002,1951.7,1951.2,0.93310529]
[1770951828713,0.002,1951.7,1951.4,0.93310529]
[1770951831215,0.002,1951.7,1951.5,1.28106584]
[1770951831522,0.002,1951.9,1951.6,0.93310529]
[1770951831720,1.37844787,1952.2,1951.6,0.93310529]
[1770951832018,3.04444787,1952.3,1951.6,0.93310529]
[1770951832188,1.37844787,1952.3,1951.6,0.93310529]
[1770951832396,0.002,1952.6,1951.6,0.93310529]
[1770951832397,1.38044787,1952.6,1951.6,0.93310529]
[1770951832602,0.002,1952.6,1951.6,0.93310529]
[1770951833413,0.002,1952.6,1951.8,0.93310529]
[1770951833608,0.002,1952.6,1952.0,0.93310529]
[1770951834891,1.38044787,1953.3,1952.2,0.93310529]
[1770951835320,1.38044787,1953.3,1952.4,0.93310529]
[1770951835321,0.002,1953.3,1952.4,0.93310529]
[1770951836622,0.002,1952.5,1952.4,0.93310529]
[1770951836793,0.002,1953.3,1952.4,0.93310529]
[1770951837123,0.002,1952.6,1952.4,0.93310529]
[1770951837320,0.002,1953.3,1952.4,0.93310529]
[1770951837523,0.002,1953.3,1952.6,0.93310529]
[1770951840304,0.9591581,1953.3,1952.4,2.84310529]
[1770951840502,0.9591581,1953.3,1952.4,1.91]
[1770951840703,0.90734159,1952.9,1951.8,2.27098668]
[1770951840930,0.90734159,1952.8,1951.8,2.27098668]
[1770951841238,0.90734159,1952.8,1951.8,0.99014348]
[1770951841707,2.56734159,1952.9,1951.8,0.99014348]
[1770951842034,0.90734159,1953.0,1951.8,0.99014348]
[1770951842340,2.18755461,1952.8,1951.9,0.99014348]
[1770951842726,0.90734159,1952.7,1951.7,5.10306895]
[1770951843033,0.90734159,1952.7,1951.8,0.99014348]
[1770951844421,0.90734159,1952.5,1951.7,4.11292523]
[1770951844929,0.90734159,1952.5,1951.7,5.10306871]
[1770951845347,1.28019829,1952.9,1951.8,0.99014348]
[1770951846332,5.12048291,1953.0,1951.8,0.99014348]
[1770951846507,0.90734159,1952.8,1951.9,1.28080331]
[1770951846708,0.90734159,1952.8,1951.9,2.27094679]
[1770951846907,0.90734159,1952.8,1951.9,1.28080331]
[1770951847437,0.90734159,1952.8,1952.0,0.99014348]
[1770951848038,0.90734159,1952.8,1951.9,1.28080331]
[1770951848732,1.28027858,1952.7,1951.9,1.28080331]
[1770951850947,1.28027858,1952.7,1951.9,2.27094679]
[1770951852540,2.18960589,1952.8,1952.0,0.99014348]
[1770951852952,0.90734159,1952.7,1952.1,1.28067209]
[1770951853117,0.90734159,1952.7,1952.0,2.27082976]
[1770951855347,2.18765515,1952.7,1952.0,2.27082976]
[1770951855920,0.90734159,1952.7,1952.0,2.27082976]
[1770951856342,0.002,1952.8,1952.0,2.27082976]
[1770951856557,1.10147798,1952.7,1952.1,0.99014348]
[1770951856725,0.002,1952.8,1952.1,0.99014348]
[1770951856926,1.10146621,1952.7,1952.1,0.99014348]
[1770951857250,0.002,1952.8,1952.2,2.27074997]
[1770951860450,1.10378684,1952.7,1952.2,2.27074997]
[1770951860658,0.002,1952.8,1952.2,2.27074997]
[1770951860857,0.002,1952.8,1952.3,0.99014348]
[1770951861368,0.002,1952.8,1952.5,0.99014348]
[1770951861671,0.002,1952.8,1952.4,1.28047531]
[1770951862237,0.002,1952.8,1952.3,1.28049108]
[1770951865950,0.002,1952.8,1952.3,2.27063456]
[1770951868081,0.002,1952.9,1952.3,0.99014348]
[1770951870590,0.9744991,1952.9,1952.3,1.28048802]
[1770951870747,0.002,1952.9,1952.3,2.27866025]
[1770951871164,0.002,1952.9,1952.4,0.99817223]
[1770951871662,2.32737912,1953.1,1952.4,0.99817223]
[1770951871873,1.10485731,1953.0,1952.4,0.99817223]
[1770951872073,1.10485731,1952.9,1952.4,0.99817223]
[1770951872277,0.9724991,1953.1,1952.4,0.99817223]
[1770951872483,1.10476455,1953.0,1952.4,0.99817223]
[1770951872782,1.10476455,1952.9,1952.5,1.28040973]
[1770951872982,0.9724991,1953.1,1952.5,1.28040973]
[1770951873185,1.10476438,1953.0,1952.5,1.28040973]
[1770951873494,1.10476438,1952.9,1952.5,1.28040973]
[1770951873777,0.9563817,1953.0,1952.4,1.28042685]
[1770951873954,1.10472981,1952.9,1952.4,1.28042685]
[1770951874157,0.9563817,1953.0,1952.4,1.28042685]
[1770951874478,1.10474463,1952.9,1952.4,1.28042685]
[1770951874673,0.9563817,1953.0,1952.4,1.28042685]
[1770951874861,1.10474469,1952.9,1952.3,5.12304819]
[1770951875061,0.9563817,1953.0,1952.3,5.12304819]
[1770951875254,1.10474463,1952.9,1952.3,5.12304819]
[1770951875462,0.9563817,1953.0,1952.3,5.12304819]
[1770951875668,1.10484806,1952.9,1952.3,5.12304819]
[1770951875873,0.9563817,1953.0,1952.3,5.12304819]
[1770951876074,2.05922988,1952.9,1952.3,5.12304819]
[1770951876273,0.9543817,1952.9,1952.3,5.12304819]
[1770951877273,1.10491199,1952.8,1952.3,5.12304819]
[1770951877478,2.05939621,1952.7,1952.3,1.2815409]
[1770951877672,0.9543817,1952.7,1952.3,1.2815409]
[1770951877878,0.9543817,1952.9,1952.3,1.2815409]
[1770951878081,1.10501248,1952.8,1952.3,1.2815409]
[1770951878281,1.10501248,1952.7,1952.3,1.2815409]
[1770951878496,0.9543817,1952.9,1952.3,1.2815409]
[1770951878687,1.10514491,1952.8,1952.3,1.2815409]
[1770951878889,1.10514491,1952.7,1952.3,1.2815409]
[1770951879072,0.9543817,1952.9,1952.3,1.2815409]
[1770951879273,1.1051451,1952.8,1952.3,1.2815409]
[1770951879474,1.1051451,1952.7,1952.3,1.2815409]
[1770951879674,1.1051451,1952.6,1952.3,1.2815409]
[1770951879880,0.9543817,1952.9,1952.3,1.2815409]
[1770951880080,1.10527234,1952.8,1952.3,1.2815409]
[1770951880379,1.10527234,1952.7,1952.3,1.2815409]
[1770951880699,1.10527234,1952.6,1952.3,1.2815409]
[1770951880871,0.9543817,1952.9,1952.3,1.2815409]
[1770951881070,1.10538977,1952.8,1952.3,1.2815409]
[1770951881266,1.10538977,1952.7,1952.3,1.2815409]
[1770951881471,1.10538977,1952.6,1952.3,1.2815409]
[1770951881671,0.9543817,1952.9,1952.3,1.2815409]
[1770951881904,0.9543817,1952.7,1952.2,0.001]
[1770951882200,2.05991518,1952.6,1952.2,1.28160602]
[1770951882404,1.10553348,1952.5,1952.2,1.28160602]
[1770951882700,0.9543817,1952.8,1952.2,1.28160602]
[1770951882900,2.06009633,1952.7,1952.2,1.28160602]
[1770951883102,1.10571463,1952.6,1952.2,1.28160602]
[1770951883300,1.10571463,1952.5,1952.2,0.001]
[1770951883505,2.06009633,1952.5,1952.2,0.001]
[1770951883799,0.9543817,1952.5,1952.2,0.001]
[1770951884999,1.28026253,1952.8,1952.2,0.001]
[1770951885000,0.9543817,1952.8,1952.2,0.001]
[1770951885189,1.10590229,1952.7,1952.2,0.001]
[1770951885374,1.10590229,1952.6,1952.2,0.001]
[1770951885576,0.9543817,1952.7,1952.2,0.001]
[1770951885792,1.10606967,1952.6,1952.2,0.001]
[1770951886108,0.9543817,1952.7,1952.2,0.001]
[1770951886303,1.10606927,1952.6,1952.2,0.001]
[1770951886506,2.79710058,1952.9,1952.2,0.001]
[1770951886717,1.10621808,1952.8,1952.2,0.98875055]
[1770951886896,1.10621808,1952.7,1952.2,0.98875055]
[1770951887096,1.10621808,1952.6,1952.3,0.001]
[1770951887298,4.07725347,1952.9,1952.3,1.2815409]
[1770951887477,4.07725347,1952.9,1952.3,0.001]
[1770951887478,1.10626819,1952.8,1952.3,0.001]
[1770951887678,2.06064989,1952.7,1952.3,0.001]
[1770951887898,1.10626819,1952.6,1952.3,0.001]
[1770951888103,2.06064989,1952.5,1952.3,0.001]
[1770951888286,1.10626819,1952.4,1952.3,0.001]
[1770951888908,0.9543817,1952.7,1952.3,0.001]
[1770951889121,1.10616393,1952.6,1952.3,0.001]
[1770951889321,1.10616393,1952.5,1952.3,0.001]
[1770951889480,0.9543817,1952.7,1952.3,0.001]
[1770951889821,1.10607552,1952.6,1952.3,0.001]
[1770951889984,1.10607552,1952.5,1952.3,0.001]
[1770951890184,0.9543817,1952.7,1952.3,0.001]
[1770951890407,1.10599313,1952.6,1952.3,0.001]
[1770951890621,1.10599313,1952.5,1952.3,0.001]
[1770951890818,0.9543817,1952.7,1952.3,0.001]
[1770951891131,1.10599323,1952.6,1952.3,0.001]
[1770951891429,1.10599323,1952.5,1952.3,0.001]
[1770951891609,0.9543817,1952.7,1952.3,0.001]
[1770951891817,1.1059288,1952.6,1952.3,0.001]
[1770951892127,1.1059288,1952.5,1952.3,0.001]
[1770951892334,1.84471888,1953.0,1952.3,0.98875055]
[1770951892501,1.10576216,1952.9,1952.3,0.98875055]
[1770951892707,1.10576216,1952.8,1952.3,0.98875055]
[1770951892893,1.10576216,1952.7,1952.3,0.98875055]
[1770951893095,0.002,1953.0,1952.3,0.98875055]
[1770951893295,1.10565684,1952.9,1952.3,0.98875055]
[1770951893526,1.10565684,1952.8,1952.4,1.28047531]
[1770951893831,1.10565684,1952.7,1952.4,1.28047531]
[1770951894039,0.9563817,1953.0,1952.4,1.28047531]
[1770951894274,1.10573427,1952.9,1952.4,1.28047531]
[1770951894531,1.10573427,1952.8,1952.4,1.28047531]
[1770951894752,1.10573427,1952.7,1952.4,1.28047531]
[1770951894908,0.9563817,1953.0,1952.4,1.28047531]
[1770951895107,1.10573067,1952.9,1952.4,1.28047531]
[1770951895332,1.10573067,1952.8,1952.4,1.28047531]
[1770951895512,0.9563817,1953.0,1952.4,1.28047531]
[1770951895513,1.10573067,1952.7,1952.4,1.28047531]
[1770951895696,0.9563817,1953.0,1952.4,1.28047531]
[1770951895899,1.10572996,1952.9,1952.4,2.26822586]
[1770951896108,1.10572996,1952.8,1952.4,2.26822586]
[1770951896306,1.10572996,1952.7,1952.4,1.28047531]
[1770951896618,0.9563817,1953.0,1952.4,1.28047531]
[1770951896937,1.10574031,1952.9,1952.4,1.28047531]
[1770951897141,0.9543817,1952.7,1952.3,1.28151806]
[1770951897294,1.10574031,1952.6,1952.3,1.28153534]
[1770951897494,1.10574031,1952.6,1952.3,0.001]
[1770951899325,2.06012201,1952.5,1952.3,0.001]
[1770951899525,1.10574031,1952.4,1952.3,0.001]
[1770951901122,0.002,1952.5,1952.3,0.001]
[1770951904732,0.94449806,1952.5,1952.3,0.001]